[Event "Titled Tuesday Blitz March 14 Early 2023"]
[White "Dudzinski, Pawel"]
[Black "Drygalov, Andrey"]
[WhiteFideId "1117890"]
[BlackFideId "24171735"]
[WhiteElo "2099"]
[BlackElo "2471"]
[Result "0-1"]
[Round "01"]
[TimeControl "180+2"]
[Date "2023.03.14"]
[WhiteClock "0:00:23"]
[BlackClock "0:01:24"]

1. e4 {[%clk 0:02:58]}  c5 {[%clk 0:02:59]} 2. d4 {[%clk 0:02:56]}  cxd4 {[%clk 0:02:55]} 3. c3 {[%clk 0:02:54]}  Nf6 {[%clk 0:02:55]} 4. e5 {[%clk 0:02:53]}  Nd5 {[%clk 0:02:53]} 5. cxd4 {[%clk 0:02:52]}  e6 {[%clk 0:02:53]} 6. Nf3 {[%clk 0:02:51]}  d6 {[%clk 0:02:54]} 7. Nc3 {[%clk 0:02:39]}  Nxc3 {[%clk 0:02:53]} 8. bxc3 {[%clk 0:02:38]}  Qc7 {[%clk 0:02:54]} 9. Bd2 {[%clk 0:02:28]}  Nd7 {[%clk 0:02:53]} 10. exd6 {[%clk 0:02:26]}  Bxd6 {[%clk 0:02:54]} 11. Bd3 {[%clk 0:02:23]}  b6 {[%clk 0:02:54]} 12. Be4 {[%clk 0:02:22]}  Bb7 {[%clk 0:02:54]} 13. Qe2 {[%clk 0:02:11]}  O-O {[%clk 0:02:52]} 14. O-O {[%clk 0:02:06]}  Nf6 {[%clk 0:02:46]} 15. Bxb7 {[%clk 0:02:04]}  Qxb7 {[%clk 0:02:47]} 16. Bg5 {[%clk 0:01:54]}  Rac8 {[%clk 0:02:42]} 17. Bxf6 {[%clk 0:01:49]}  gxf6 {[%clk 0:02:43]} 18. c4 {[%clk 0:01:48]}  Kh8 {[%clk 0:02:41]} 19. Rac1 {[%clk 0:01:43]}  Rg8 {[%clk 0:02:41]} 20. g3 {[%clk 0:01:30]}  Rc7 {[%clk 0:02:30]} 21. Nd2 {[%clk 0:01:23]}  Rgc8 {[%clk 0:02:28]} 22. Rc2 {[%clk 0:01:14]}  Be7 {[%clk 0:02:23]} 23. Rfc1 {[%clk 0:01:05]}  Qc6 {[%clk 0:02:18]} 24. d5 {[%clk 0:00:59]}  Qd7 {[%clk 0:02:14]} 25. dxe6 {[%clk 0:00:58]}  fxe6 {[%clk 0:02:09]} 26. Nb3 {[%clk 0:00:55]}  e5 {[%clk 0:02:08]} 27. Rd1 {[%clk 0:00:55]}  Qf5 {[%clk 0:02:04]} 28. c5 {[%clk 0:00:52]}  bxc5 {[%clk 0:02:00]} 29. Rc4 {[%clk 0:00:52]}  Rd7 {[%clk 0:01:59]} 30. Rxd7 {[%clk 0:00:47]}  Qxd7 {[%clk 0:02:00]} 31. Qc2 {[%clk 0:00:46]}  Qd5 {[%clk 0:01:57]} 32. Nd2 {[%clk 0:00:40]}  Rd8 {[%clk 0:01:53]} 33. Ne4 {[%clk 0:00:39]}  Qd1+ {[%clk 0:01:51]} 34. Kg2 {[%clk 0:00:37]}  Qxc2 {[%clk 0:01:50]} 35. Rxc2 {[%clk 0:00:37]}  f5 {[%clk 0:01:50]} 36. Nc3 {[%clk 0:00:34]}  Kg7 {[%clk 0:01:50]} 37. f3 {[%clk 0:00:34]}  c4 {[%clk 0:01:43]} 38. Nb1 {[%clk 0:00:30]}  Rc8 {[%clk 0:01:34]} 39. Nd2 {[%clk 0:00:28]}  c3 {[%clk 0:01:33]} 40. Nb1 {[%clk 0:00:28]}  Bb4 {[%clk 0:01:33]} 41. a3 {[%clk 0:00:28]}  Ba5 {[%clk 0:01:33]} 42. Kf2 {[%clk 0:00:28]}  Kf6 {[%clk 0:01:32]} 43. Ke2 {[%clk 0:00:27]}  e4 {[%clk 0:01:32]} 44. fxe4 {[%clk 0:00:27]}  fxe4 {[%clk 0:01:33]} 45. Ke3 {[%clk 0:00:27]}  Ke5 {[%clk 0:01:29]} 46. g4 {[%clk 0:00:27]}  Rf8 {[%clk 0:01:27]} 47. h3 {[%clk 0:00:22]}  Rf3+ {[%clk 0:01:24]} 48. Ke2 {[%clk 0:00:23]}  Rxh3 {[%clk 0:01:24]} 0-1


[Site "https://www.chess.com"]

[Event "Titled Tuesday Blitz March 14 Early 2023"]
[White "Acor, Corey"]
[Black "Bruedigam, Martin"]
[WhiteFideId "2024861"]
[BlackFideId "24608033"]
[WhiteElo "2341"]
[BlackElo "2331"]
[Result "0-1"]
[Round "01"]
[TimeControl "180+2"]
[Date "2023.03.14"]
[WhiteClock "0:00:05"]
[BlackClock "0:01:05"]

1. e4 {[%clk 0:02:59]}  c6 {[%clk 0:02:59]} 2. d3 {[%clk 0:02:59]}  d5 {[%clk 0:02:57]} 3. Nd2 {[%clk 0:02:59]}  e5 {[%clk 0:02:56]} 4. Ngf3 {[%clk 0:02:59]}  Nd7 {[%clk 0:02:53]} 5. g3 {[%clk 0:02:56]}  Ngf6 {[%clk 0:02:53]} 6. Bg2 {[%clk 0:02:56]}  dxe4 {[%clk 0:02:53]} 7. dxe4 {[%clk 0:02:56]}  Be7 {[%clk 0:02:51]} 8. O-O {[%clk 0:02:55]}  O-O {[%clk 0:02:52]} 9. b3 {[%clk 0:02:50]}  Re8 {[%clk 0:02:51]} 10. Bb2 {[%clk 0:02:47]}  Qc7 {[%clk 0:02:51]} 11. Qe2 {[%clk 0:02:45]}  Bc5 {[%clk 0:02:49]} 12. h3 {[%clk 0:02:38]}  a5 {[%clk 0:02:49]} 13. Rfe1 {[%clk 0:02:20]}  Nf8 {[%clk 0:02:49]} 14. Nf1 {[%clk 0:02:19]}  N6d7 {[%clk 0:02:49]} 15. Rad1 {[%clk 0:02:19]}  Ne6 {[%clk 0:02:49]} 16. a3 {[%clk 0:02:12]}  f6 {[%clk 0:02:45]} 17. Ne3 {[%clk 0:02:05]}  b5 {[%clk 0:02:45]} 18. Nf5 {[%clk 0:01:54]}  Ndf8 {[%clk 0:02:44]} 19. N3h4 {[%clk 0:01:46]}  Qb6 {[%clk 0:02:34]} 20. Rf1 {[%clk 0:01:40]}  Ra7 {[%clk 0:02:34]} 21. Kh2 {[%clk 0:01:38]}  Rd7 {[%clk 0:02:30]} 22. Rxd7 {[%clk 0:01:29]}  Bxd7 {[%clk 0:02:31]} 23. Kh1 {[%clk 0:01:14]}  Nd4 {[%clk 0:02:17]} 24. Nxd4 {[%clk 0:01:12]}  Bxd4 {[%clk 0:02:17]} 25. c3 {[%clk 0:01:10]}  Bc5 {[%clk 0:02:16]} 26. b4 {[%clk 0:01:10]}  Be7 {[%clk 0:02:16]} 27. Bc1 {[%clk 0:01:08]}  Be6 {[%clk 0:02:14]} 28. Nf5 {[%clk 0:01:08]}  Bc4 {[%clk 0:02:12]} 29. Qg4 {[%clk 0:01:04]}  g6 {[%clk 0:02:09]} 30. Rd1 {[%clk 0:01:02]}  Be6 {[%clk 0:01:55]} 31. Nxe7+ {[%clk 0:00:59]}  Rxe7 {[%clk 0:01:55]} 32. Qe2 {[%clk 0:01:00]}  a4 {[%clk 0:01:46]} 33. Be3 {[%clk 0:00:56]}  Qc7 {[%clk 0:01:45]} 34. f4 {[%clk 0:00:53]}  Rd7 {[%clk 0:01:45]} 35. fxe5 {[%clk 0:00:21]}  Rxd1+ {[%clk 0:01:40]} 36. Qxd1 {[%clk 0:00:20]}  fxe5 {[%clk 0:01:32]} 37. Bc5 {[%clk 0:00:20]}  Qd7 {[%clk 0:01:24]} 38. Qxd7 {[%clk 0:00:18]}  Nxd7 {[%clk 0:01:25]} 39. Bd6 {[%clk 0:00:18]}  Kf7 {[%clk 0:01:26]} 40. Kg1 {[%clk 0:00:18]}  g5 {[%clk 0:01:23]} 41. Kf2 {[%clk 0:00:18]}  h5 {[%clk 0:01:23]} 42. h4 {[%clk 0:00:17]}  g4 {[%clk 0:01:20]} 43. Ke3 {[%clk 0:00:18]}  Bc4 {[%clk 0:01:20]} 44. Bc7 {[%clk 0:00:15]}  Ke6 {[%clk 0:01:20]} 45. Kf2 {[%clk 0:00:14]}  Nf6 {[%clk 0:01:19]} 46. Ke3 {[%clk 0:00:15]}  Bb3 {[%clk 0:01:19]} 47. Bd8 {[%clk 0:00:14]}  Ne8 {[%clk 0:01:17]} 48. Bf1 {[%clk 0:00:14]}  Bc2 {[%clk 0:01:14]} 49. Bb6 {[%clk 0:00:10]}  Nd6 {[%clk 0:01:11]} 50. Bd3 {[%clk 0:00:06]}  Bxd3 {[%clk 0:01:09]} 51. Kxd3 {[%clk 0:00:07]}  Nc4 {[%clk 0:01:10]} 52. Be3 {[%clk 0:00:06]}  Nxa3 {[%clk 0:01:10]} 53. Bc1 {[%clk 0:00:07]}  Nc4 {[%clk 0:01:11]} 54. Kc2 {[%clk 0:00:07]}  Kd6 {[%clk 0:01:09]} 55. Bh6 {[%clk 0:00:06]}  Ke7 {[%clk 0:01:08]} 56. Kd3 {[%clk 0:00:06]}  a3 {[%clk 0:01:05]} 57. Kc2 {[%clk 0:00:05]}  a2 {[%clk 0:01:05]} 0-1


[Site "https://www.chess.com"]

[Event "Titled Tuesday Blitz March 14 Early 2023"]
[White "Gupta, Abhijeet"]
[Black "Cheng, Xiao"]
[WhiteFideId "5010608"]
[BlackFideId "2022915"]
[WhiteElo "2528"]
[BlackElo "2462"]
[Result "1-0"]
[Round "01"]
[TimeControl "180+2"]
[Date "2023.03.14"]
[WhiteClock "0:01:48"]
[BlackClock "0:01:23"]

1. d4 {[%clk 0:02:58]}  Nf6 {[%clk 0:02:53]} 2. Nf3 {[%clk 0:02:57]}  e6 {[%clk 0:02:52]} 3. Bf4 {[%clk 0:02:57]}  c5 {[%clk 0:02:50]} 4. e3 {[%clk 0:02:56]}  d5 {[%clk 0:02:49]} 5. Nbd2 {[%clk 0:02:55]}  Nc6 {[%clk 0:02:48]} 6. c3 {[%clk 0:02:55]}  Bd6 {[%clk 0:02:48]} 7. Bg3 {[%clk 0:02:56]}  O-O {[%clk 0:02:46]} 8. Bd3 {[%clk 0:02:56]}  Re8 {[%clk 0:02:45]} 9. Ne5 {[%clk 0:02:50]}  Qc7 {[%clk 0:02:41]} 10. f4 {[%clk 0:02:43]}  cxd4 {[%clk 0:02:40]} 11. exd4 {[%clk 0:02:41]}  Rb8 {[%clk 0:02:32]} 12. O-O {[%clk 0:02:36]}  b5 {[%clk 0:02:31]} 13. Bh4 {[%clk 0:02:36]}  Be7 {[%clk 0:02:24]} 14. Rc1 {[%clk 0:02:35]}  b4 {[%clk 0:02:23]} 15. cxb4 {[%clk 0:02:29]}  Rxb4 {[%clk 0:01:57]} 16. Nxc6 {[%clk 0:02:23]}  Rxb2 {[%clk 0:01:56]} 17. Nxe7+ {[%clk 0:02:20]}  Qxe7 {[%clk 0:01:56]} 18. Rc2 {[%clk 0:02:19]}  Qb4 {[%clk 0:01:50]} 19. Bxf6 {[%clk 0:02:16]}  gxf6 {[%clk 0:01:50]} 20. Nb3 {[%clk 0:02:02]}  Rxc2 {[%clk 0:01:45]} 21. Qxc2 {[%clk 0:02:02]}  a5 {[%clk 0:01:44]} 22. Qc5 {[%clk 0:01:58]}  Qb8 {[%clk 0:01:32]} 23. Qxa5 {[%clk 0:01:56]}  Re7 {[%clk 0:01:32]} 24. Rc1 {[%clk 0:01:52]}  Ra7 {[%clk 0:01:24]} 25. Qd8+ {[%clk 0:01:51]}  Kg7 {[%clk 0:01:24]} 26. Rxc8 {[%clk 0:01:50]}  Qxf4 {[%clk 0:01:23]} 27. Qf8# {[%clk 0:01:48]} 1-0


[Site "https://www.chess.com"]

[Event "Titled Tuesday Blitz March 14 Early 2023"]
[White "Deng, Henry"]
[Black "Vakhlamov, Igor L."]
[WhiteFideId "30965454"]
[BlackFideId "24126748"]
[WhiteElo "2461"]
[BlackElo "2400"]
[Result "0-1"]
[Round "01"]
[TimeControl "180+2"]
[Date "2023.03.14"]
[WhiteClock "0:00:01"]
[BlackClock "0:00:02"]

1. e4 {[%clk 0:02:59]}  c5 {[%clk 0:02:55]} 2. Nc3 {[%clk 0:02:57]}  e6 {[%clk 0:02:55]} 3. Nf3 {[%clk 0:02:54]}  Nc6 {[%clk 0:02:46]} 4. Bb5 {[%clk 0:02:49]}  Nge7 {[%clk 0:02:46]} 5. d4 {[%clk 0:02:30]}  cxd4 {[%clk 0:02:41]} 6. Nxd4 {[%clk 0:02:31]}  a6 {[%clk 0:02:38]} 7. Nxc6 {[%clk 0:02:30]}  Nxc6 {[%clk 0:02:39]} 8. Bd3 {[%clk 0:02:30]}  b5 {[%clk 0:02:35]} 9. O-O {[%clk 0:02:29]}  Bb7 {[%clk 0:02:34]} 10. Be3 {[%clk 0:02:22]}  Qc7 {[%clk 0:02:33]} 11. f4 {[%clk 0:02:16]}  d6 {[%clk 0:02:16]} 12. Qd2 {[%clk 0:02:04]}  Be7 {[%clk 0:02:05]} 13. a4 {[%clk 0:02:01]}  b4 {[%clk 0:02:04]} 14. Ne2 {[%clk 0:02:01]}  O-O {[%clk 0:02:00]} 15. Nd4 {[%clk 0:01:57]}  Nxd4 {[%clk 0:01:59]} 16. Bxd4 {[%clk 0:01:57]}  a5 {[%clk 0:01:58]} 17. Rac1 {[%clk 0:01:34]}  Bc6 {[%clk 0:01:44]} 18. c3 {[%clk 0:01:31]}  Qb7 {[%clk 0:01:23]} 19. cxb4 {[%clk 0:01:22]}  axb4 {[%clk 0:01:24]} 20. e5 {[%clk 0:00:56]}  dxe5 {[%clk 0:01:12]} 21. Bxe5 {[%clk 0:00:52]}  Rfd8 {[%clk 0:01:06]} 22. Qe2 {[%clk 0:00:50]}  Bxg2 {[%clk 0:00:44]} 23. Qg4 {[%clk 0:00:29]}  Bf8 {[%clk 0:00:33]} 24. Rf2 {[%clk 0:00:22]}  Rxd3 {[%clk 0:00:30]} 25. Rxg2 {[%clk 0:00:22]}  f5 {[%clk 0:00:22]} 26. Qe2 {[%clk 0:00:22]}  Rd7 {[%clk 0:00:20]} 27. Rf1 {[%clk 0:00:19]}  Rad8 {[%clk 0:00:20]} 28. Qc4 {[%clk 0:00:19]}  Qd5 {[%clk 0:00:18]} 29. Qc2 {[%clk 0:00:17]}  Qd3 {[%clk 0:00:16]} 30. Qf2 {[%clk 0:00:16]}  Qe4 {[%clk 0:00:15]} 31. b3 {[%clk 0:00:16]}  Rd1 {[%clk 0:00:14]} 32. Rg3 {[%clk 0:00:12]}  Rxf1+ {[%clk 0:00:14]} 33. Qxf1 {[%clk 0:00:12]}  Qc2 {[%clk 0:00:14]} 34. Re3 {[%clk 0:00:10]}  Rd1 {[%clk 0:00:13]} 35. Re1 {[%clk 0:00:11]}  Bc5+ {[%clk 0:00:12]} 36. Kh1 {[%clk 0:00:10]}  Rd2 {[%clk 0:00:12]} 37. Qh3 {[%clk 0:00:08]}  Re2 {[%clk 0:00:08]} 38. Rf1 {[%clk 0:00:07]}  Qe4+ {[%clk 0:00:09]} 39. Qf3 {[%clk 0:00:07]}  Re3 {[%clk 0:00:04]} 40. Qxe4 {[%clk 0:00:06]}  fxe4 {[%clk 0:00:05]} 41. Rc1 {[%clk 0:00:06]}  Be7 {[%clk 0:00:05]} 42. Rc7 {[%clk 0:00:06]}  Kf8 {[%clk 0:00:04]} 43. a5 {[%clk 0:00:03]}  Rxb3 {[%clk 0:00:04]} 44. a6 {[%clk 0:00:04]}  Ra3 {[%clk 0:00:04]} 45. a7 {[%clk 0:00:04]}  Kf7 {[%clk 0:00:03]} 46. Bd6 {[%clk 0:00:05]}  Ra1+ {[%clk 0:00:03]} 47. Kg2 {[%clk 0:00:04]}  b3 {[%clk 0:00:03]} 48. Rxe7+ {[%clk 0:00:03]}  Kf6 {[%clk 0:00:04]} 49. Rb7 {[%clk 0:00:03]}  Ra2+ {[%clk 0:00:05]} 50. Kf1 {[%clk 0:00:03]}  Kf5 {[%clk 0:00:03]} 51. Be5 {[%clk 0:00:03]}  e3 {[%clk 0:00:03]} 52. Rxb3 {[%clk 0:00:01]}  Ke4 {[%clk 0:00:02]} 0-1


[Site "https://www.chess.com"]

[Event "Titled Tuesday Blitz March 14 Early 2023"]
[White "Miszler, Levente"]
[Black "Gareyev, Timur"]
[WhiteFideId "763276"]
[BlackFideId "14200937"]
[WhiteElo "2176"]
[BlackElo "2563"]
[Result "0-1"]
[Round "01"]
[TimeControl "180+2"]
[Date "2023.03.14"]
[WhiteClock "0:01:41"]
[BlackClock "0:01:43"]

1. Nf3 {[%clk 0:03:00]}  d6 {[%clk 0:02:50]} 2. c4 {[%clk 0:02:58]}  g6 {[%clk 0:02:49]} 3. g3 {[%clk 0:02:58]}  Bg7 {[%clk 0:02:48]} 4. Bg2 {[%clk 0:02:59]}  Nh6 {[%clk 0:02:49]} 5. O-O {[%clk 0:02:59]}  O-O {[%clk 0:02:49]} 6. Nc3 {[%clk 0:02:59]}  c5 {[%clk 0:02:47]} 7. d3 {[%clk 0:02:57]}  Nf5 {[%clk 0:02:47]} 8. a3 {[%clk 0:02:57]}  Nc6 {[%clk 0:02:45]} 9. Rb1 {[%clk 0:02:57]}  b6 {[%clk 0:02:45]} 10. Bd2 {[%clk 0:02:55]}  Bb7 {[%clk 0:02:44]} 11. b4 {[%clk 0:02:54]}  Qd7 {[%clk 0:02:44]} 12. e3 {[%clk 0:02:52]}  e6 {[%clk 0:02:41]} 13. Qc2 {[%clk 0:02:52]}  Rad8 {[%clk 0:02:40]} 14. Rfd1 {[%clk 0:02:51]}  Ne5 {[%clk 0:02:37]} 15. Nxe5 {[%clk 0:02:49]}  Bxe5 {[%clk 0:02:38]} 16. Bxb7 {[%clk 0:02:49]}  Qxb7 {[%clk 0:02:39]} 17. Ne4 {[%clk 0:02:44]}  Qa8 {[%clk 0:02:35]} 18. Bc3 {[%clk 0:02:43]}  f6 {[%clk 0:02:22]} 19. Qb2 {[%clk 0:02:43]}  Bxc3 {[%clk 0:02:21]} 20. Qxc3 {[%clk 0:02:41]}  e5 {[%clk 0:02:21]} 21. Qb3 {[%clk 0:02:35]}  Kg7 {[%clk 0:02:17]} 22. Nc3 {[%clk 0:02:35]}  h5 {[%clk 0:02:11]} 23. Nd5 {[%clk 0:02:35]}  Rf7 {[%clk 0:02:08]} 24. bxc5 {[%clk 0:02:30]}  dxc5 {[%clk 0:02:08]} 25. a4 {[%clk 0:02:31]}  h4 {[%clk 0:02:08]} 26. a5 {[%clk 0:02:30]}  Rd6 {[%clk 0:02:08]} 27. axb6 {[%clk 0:02:29]}  axb6 {[%clk 0:02:09]} 28. Nxb6 {[%clk 0:02:22]}  Qf3 {[%clk 0:02:08]} 29. Qa4 {[%clk 0:02:02]}  h3 {[%clk 0:01:57]} 30. Qa8 {[%clk 0:01:51]}  Rb7 {[%clk 0:01:57]} 31. Qxb7+ {[%clk 0:01:49]}  Qxb7 {[%clk 0:01:58]} 32. Nd5 {[%clk 0:01:49]}  Qa8 {[%clk 0:01:52]} 33. Ra1 {[%clk 0:01:49]}  Ra6 {[%clk 0:01:49]} 34. Rab1 {[%clk 0:01:42]}  Ne7 {[%clk 0:01:44]} 35. e4 {[%clk 0:01:40]}  Nxd5 {[%clk 0:01:44]} 36. exd5 {[%clk 0:01:41]}  Ra2 {[%clk 0:01:43]} 0-1


[Site "https://www.chess.com"]

[Event "Titled Tuesday Blitz March 14 Early 2023"]
[White "Zahid, Sanatan"]
[Black "Bilan, Danila"]
[WhiteFideId "10201963"]
[BlackFideId "24161918"]
[WhiteElo "1865"]
[BlackElo "2182"]
[Result "1-0"]
[Round "01"]
[TimeControl "180+2"]
[Date "2023.03.14"]
[WhiteClock "0:02:30"]
[BlackClock "0:00:03"]

1. d4 {[%clk 0:02:59]}  d5 {[%clk 0:02:59]} 2. Nc3 {[%clk 0:02:58]}  Nf6 {[%clk 0:02:58]} 3. Bf4 {[%clk 0:02:58]}  Bf5 {[%clk 0:02:51]} 4. f3 {[%clk 0:02:57]}  e6 {[%clk 0:02:44]} 5. g4 {[%clk 0:02:55]}  Bg6 {[%clk 0:02:44]} 6. h4 {[%clk 0:02:55]}  h6 {[%clk 0:02:30]} 7. e3 {[%clk 0:02:55]}  Bd6 {[%clk 0:02:29]} 8. Nh3 {[%clk 0:02:55]}  a6 {[%clk 0:02:12]} 9. Bd3 {[%clk 0:02:53]}  Bxd3 {[%clk 0:02:11]} 10. cxd3 {[%clk 0:02:54]}  Nc6 {[%clk 0:02:04]} 11. Qb3 {[%clk 0:02:53]}  b5 {[%clk 0:01:46]} 12. O-O-O {[%clk 0:02:52]}  Qd7 {[%clk 0:01:30]} 13. Kb1 {[%clk 0:02:51]}  Rb8 {[%clk 0:01:23]} 14. Bxd6 {[%clk 0:02:47]}  Qxd6 {[%clk 0:01:18]} 15. g5 {[%clk 0:02:48]}  Nh5 {[%clk 0:01:13]} 16. f4 {[%clk 0:02:47]}  hxg5 {[%clk 0:01:04]} 17. hxg5 {[%clk 0:02:46]}  g6 {[%clk 0:01:01]} 18. Nf2 {[%clk 0:02:45]}  Ke7 {[%clk 0:00:50]} 19. Ng4 {[%clk 0:02:43]}  Ng3 {[%clk 0:00:40]} 20. Rhg1 {[%clk 0:02:42]}  Nf5 {[%clk 0:00:36]} 21. Rc1 {[%clk 0:02:42]}  Rh3 {[%clk 0:00:31]} 22. Nd1 {[%clk 0:02:37]}  Na5 {[%clk 0:00:10]} 23. Qc3 {[%clk 0:02:35]}  Nb7 {[%clk 0:00:03]} 24. Qxc7+ {[%clk 0:02:33]}  Qxc7 {[%clk 0:00:04]} 25. Rxc7+ {[%clk 0:02:34]}  Kf8 {[%clk 0:00:03]} 26. Ne5 {[%clk 0:02:30]} 1-0


[Site "https://www.chess.com"]

[Event "Titled Tuesday Blitz March 14 Early 2023"]
[White "Rosenberg, Evan S"]
[Black "Urazayev, Arystanbek"]
[WhiteFideId "2019299"]
[BlackFideId "13709810"]
[WhiteElo "2429"]
[BlackElo "2479"]
[Result "0-1"]
[Round "01"]
[TimeControl "180+2"]
[Date "2023.03.14"]
[WhiteClock "0:00:01"]
[BlackClock "0:00:29"]

1. d4 {[%clk 0:03:00]}  Nf6 {[%clk 0:02:59]} 2. Nf3 {[%clk 0:03:00]}  g6 {[%clk 0:02:59]} 3. Nc3 {[%clk 0:03:01]}  Bg7 {[%clk 0:03:00]} 4. e4 {[%clk 0:03:01]}  d6 {[%clk 0:03:00]} 5. Be2 {[%clk 0:03:01]}  O-O {[%clk 0:03:00]} 6. O-O {[%clk 0:03:01]}  Nc6 {[%clk 0:03:00]} 7. d5 {[%clk 0:03:01]}  Nb8 {[%clk 0:02:59]} 8. h3 {[%clk 0:02:57]}  c6 {[%clk 0:02:58]} 9. a4 {[%clk 0:02:56]}  a5 {[%clk 0:02:56]} 10. Bf4 {[%clk 0:02:52]}  Na6 {[%clk 0:02:49]} 11. Qd2 {[%clk 0:02:45]}  Nb4 {[%clk 0:02:44]} 12. Rfe1 {[%clk 0:02:40]}  cxd5 {[%clk 0:02:43]} 13. exd5 {[%clk 0:02:40]}  Bf5 {[%clk 0:02:44]} 14. Nd4 {[%clk 0:02:38]}  Ne4 {[%clk 0:02:42]} 15. Nxe4 {[%clk 0:02:37]}  Bxe4 {[%clk 0:02:43]} 16. c3 {[%clk 0:02:37]}  Nxd5 {[%clk 0:02:40]} 17. Bh6 {[%clk 0:02:36]}  Nf6 {[%clk 0:02:24]} 18. Bxg7 {[%clk 0:02:35]}  Kxg7 {[%clk 0:02:25]} 19. Bc4 {[%clk 0:02:18]}  Qd7 {[%clk 0:02:03]} 20. Re2 {[%clk 0:01:54]}  Bc6 {[%clk 0:01:56]} 21. Rae1 {[%clk 0:01:52]}  e5 {[%clk 0:01:53]} 22. Nb5 {[%clk 0:01:42]}  d5 {[%clk 0:01:43]} 23. Ba2 {[%clk 0:01:31]}  e4 {[%clk 0:01:25]} 24. Qd4 {[%clk 0:01:25]}  Bxb5 {[%clk 0:01:25]} 25. axb5 {[%clk 0:01:25]}  Qxb5 {[%clk 0:01:24]} 26. g4 {[%clk 0:01:25]}  h6 {[%clk 0:01:15]} 27. h4 {[%clk 0:01:25]}  Qd7 {[%clk 0:01:12]} 28. f3 {[%clk 0:00:42]}  exf3 {[%clk 0:01:12]} 29. Rf2 {[%clk 0:00:19]}  Qxg4+ {[%clk 0:01:10]} 30. Qxg4 {[%clk 0:00:19]}  Nxg4 {[%clk 0:01:11]} 31. Rxf3 {[%clk 0:00:20]}  Nf6 {[%clk 0:00:58]} 32. Re7 {[%clk 0:00:15]}  b6 {[%clk 0:00:59]} 33. h5 {[%clk 0:00:10]}  g5 {[%clk 0:00:58]} 34. Rb7 {[%clk 0:00:07]}  Rab8 {[%clk 0:00:56]} 35. Ra7 {[%clk 0:00:05]}  Rfd8 {[%clk 0:00:51]} 36. Re3 {[%clk 0:00:04]}  Rd6 {[%clk 0:00:31]} 37. Ree7 {[%clk 0:00:04]}  Rf8 {[%clk 0:00:31]} 38. b4 {[%clk 0:00:03]}  axb4 {[%clk 0:00:31]} 39. cxb4 {[%clk 0:00:04]}  Nxh5 {[%clk 0:00:30]} 40. b5 {[%clk 0:00:03]}  Nf4 {[%clk 0:00:30]} 41. Bb3 {[%clk 0:00:02]}  Ng6 {[%clk 0:00:31]} 42. Rec7 {[%clk 0:00:02]}  Ne5 {[%clk 0:00:31]} 43. Kg2 {[%clk 0:00:01]}  d4 {[%clk 0:00:29]} 0-1


[Site "https://www.chess.com"]

[Event "Titled Tuesday Blitz March 14 Early 2023"]
[White "Santos Ruiz, Miguel"]
[Black "Peatman, Carter"]
[WhiteFideId "22291482"]
[BlackFideId "2096480"]
[WhiteElo "2504"]
[BlackElo "2003"]
[Result "1-0"]
[Round "01"]
[TimeControl "180+2"]
[Date "2023.03.14"]
[WhiteClock "0:00:05"]
[BlackClock "0:00:03"]

1. e4 {[%clk 0:02:59]}  e5 {[%clk 0:02:56]} 2. Nf3 {[%clk 0:02:59]}  Nf6 {[%clk 0:02:56]} 3. Nxe5 {[%clk 0:02:58]}  d6 {[%clk 0:02:56]} 4. Nf3 {[%clk 0:02:58]}  Nxe4 {[%clk 0:02:57]} 5. Nc3 {[%clk 0:02:59]}  Nxc3 {[%clk 0:02:50]} 6. dxc3 {[%clk 0:02:59]}  Be7 {[%clk 0:02:50]} 7. Bf4 {[%clk 0:02:58]}  Be6 {[%clk 0:02:48]} 8. Nd4 {[%clk 0:02:47]}  Qd7 {[%clk 0:02:37]} 9. Nxe6 {[%clk 0:02:36]}  fxe6 {[%clk 0:02:22]} 10. Bd3 {[%clk 0:02:29]}  g6 {[%clk 0:02:11]} 11. O-O {[%clk 0:02:03]}  Nc6 {[%clk 0:02:04]} 12. a4 {[%clk 0:01:50]}  e5 {[%clk 0:02:04]} 13. Be3 {[%clk 0:01:49]}  d5 {[%clk 0:01:47]} 14. c4 {[%clk 0:01:27]}  O-O-O {[%clk 0:01:18]} 15. cxd5 {[%clk 0:01:24]}  Qxd5 {[%clk 0:01:19]} 16. Qg4+ {[%clk 0:01:19]}  Kb8 {[%clk 0:01:19]} 17. Rfd1 {[%clk 0:00:51]}  h5 {[%clk 0:01:18]} 18. Qe4 {[%clk 0:00:48]}  Qxe4 {[%clk 0:00:56]} 19. Bxe4 {[%clk 0:00:48]}  g5 {[%clk 0:00:54]} 20. c3 {[%clk 0:00:43]}  Bf6 {[%clk 0:00:50]} 21. g3 {[%clk 0:00:40]}  Ne7 {[%clk 0:00:49]} 22. Kg2 {[%clk 0:00:38]}  c6 {[%clk 0:00:49]} 23. a5 {[%clk 0:00:37]}  Nd5 {[%clk 0:00:38]} 24. Bc5 {[%clk 0:00:32]}  a6 {[%clk 0:00:28]} 25. c4 {[%clk 0:00:30]}  Nc7 {[%clk 0:00:24]} 26. Bb6 {[%clk 0:00:29]}  Rde8 {[%clk 0:00:20]} 27. Rd7 {[%clk 0:00:28]}  Ne6 {[%clk 0:00:20]} 28. Ra3 {[%clk 0:00:23]}  Re7 {[%clk 0:00:19]} 29. Rxe7 {[%clk 0:00:18]}  Bxe7 {[%clk 0:00:20]} 30. Rf3 {[%clk 0:00:17]}  Rf8 {[%clk 0:00:18]} 31. Rxf8+ {[%clk 0:00:16]}  Bxf8 {[%clk 0:00:19]} 32. Bf5 {[%clk 0:00:12]}  Nc7 {[%clk 0:00:11]} 33. h4 {[%clk 0:00:11]}  gxh4 {[%clk 0:00:11]} 34. gxh4 {[%clk 0:00:11]}  Be7 {[%clk 0:00:12]} 35. Kh3 {[%clk 0:00:12]}  Bf6 {[%clk 0:00:11]} 36. Bg6 {[%clk 0:00:11]}  Ne6 {[%clk 0:00:11]} 37. Bxh5 {[%clk 0:00:11]}  Nf4+ {[%clk 0:00:12]} 38. Kg4 {[%clk 0:00:12]}  Nd3 {[%clk 0:00:10]} 39. Bg6 {[%clk 0:00:10]}  Nxb2 {[%clk 0:00:10]} 40. c5 {[%clk 0:00:06]}  Nc4 {[%clk 0:00:09]} 41. h5 {[%clk 0:00:06]}  Nxb6 {[%clk 0:00:08]} 42. cxb6 {[%clk 0:00:05]}  c5 {[%clk 0:00:07]} 43. Bd3 {[%clk 0:00:05]}  Kc8 {[%clk 0:00:07]} 44. Kf5 {[%clk 0:00:05]}  Bh8 {[%clk 0:00:08]} 45. h6 {[%clk 0:00:05]}  Kd7 {[%clk 0:00:08]} 46. Be4 {[%clk 0:00:06]}  c4 {[%clk 0:00:07]} 47. Bxb7 {[%clk 0:00:05]}  c3 {[%clk 0:00:07]} 48. Be4 {[%clk 0:00:06]}  Kd6 {[%clk 0:00:04]} 49. Kg6 {[%clk 0:00:06]}  Ke7 {[%clk 0:00:03]} 50. b7 {[%clk 0:00:05]} 1-0


[Site "https://www.chess.com"]